[Event "29. Klatovy A 2023"]
[Site "Klatovy"]
[Date "2023.07.02"]
[Round "2.11"]
[White "Hosnedl, Jiri"]
[Black "Neuman, Petr"]
[Result "0-1"]
[ECO "E62"]
[WhiteElo "1858"]
[BlackElo "2398"]
[PlyCount "112"]
[EventDate "2023.07.01"]
[EventType "swiss"]
[EventRounds "9"]
[EventCountry "CZE"]
[TimeControl "120+30"]

1. d4 {[%emt 0:00:02]} d6 {[%emt 0:00:05]} 2. Nf3 {[%emt 0:01:16]} Nf6 {[%emt 0:00:12]} 3. c4 {[%emt 0:00:43]} g6 {[%emt 0:00:07]} 4. g3 {[%emt 0:00:33]} Bg7 {[%emt 0:00:06]} 5. Bg2 {[%emt 0:00:19]} O-O {[%emt 0:00:06]} 6. O-O {[%emt 0:01:21]} c6 {[%emt 0:00:03]} 7. Nc3 {[%emt 0:01:52]} Qa5 {[%emt 0:00:05]} 8. a3 {[%emt 0:13:57]} Qh5 {[%emt 0:01:20]} 9. h4 {[%emt 0:07:38]} e5 {[%emt 0:07:33]} 10. dxe5 {[%emt 0:05:04]} dxe5 {[%emt 0:00:10]} 11. Ng5 {[%emt 0:02:08]} Na6 {[%emt 0:05:13]} 12. Nge4 {[%emt 0:05:32]} Nxe4 {[%emt 0:03:47]} 13. Nxe4 {[%emt 0:01:36]} h6 {[%emt 0:01:58]} 14. b4 {[%emt 0:07:53]} Bg4 {[%emt 0:05:42]} 15. f3 {[%emt 0:22:51]} Be6 {[%emt 0:01:41]} 16. Qe1 {[%emt 0:05:18]} f5 {[%emt 0:01:14]} 17. Nd6 {[%emt 0:08:27]} e4 {[%emt 0:11:20]} 18. Rb1 {[%emt 0:05:59]} g5 {[%emt 0:08:44]} 19. hxg5 {[%emt 0:05:56]} hxg5 {[%emt 0:00:30]} 20. Bb2 {[%emt 0:08:59]} Bxb2 {[%emt 0:01:40]} 21. Rxb2 {[%emt 0:00:08]} Qh8 {[%emt 0:00:19]} 22. Qd2 {[%emt 0:11:04]} f4 {[%emt 0:03:46]} 23. fxe4 {[%emt 0:05:41]} Qe5 {[%emt 0:00:29]} 24. gxf4 {[%emt 0:03:28]} gxf4 {[%emt 0:00:44]} 25. Rb3 {[%emt 0:01:35]} Rf6 {[%emt 0:03:55]} 26. Rd3 {[%emt 0:02:36]} Raf8 {[%emt 0:00:39]} 27. Kf2 {[%emt 0:01:12]} Rg6 {[%emt 0:00:32]} 28. Bf3 {[%emt 0:00:26]} b6 {[%emt 0:03:36]} 29. Ke1 {[%emt 0:00:17]} c5 {[%emt 0:00:31]} 30. b5 {[%emt 0:00:22]} Nb8 {[%emt 0:00:41]} 31. Kd1 {[%emt 0:00:23]} Qa1+ {[%emt 0:06:48]} 32. Qc1 {[%emt 0:00:26]} Qxc1+ {[%emt 0:00:03]} 33. Kxc1 {[%emt 0:00:06]} Nd7 {[%emt 0:00:03]} 34. Rfd1 {[%emt 0:01:32]} Ne5 {[%emt 0:00:07]} 35. R3d2 {[%emt 0:00:33]} Rg5 {[%emt 0:02:51]} 36. Kb1 {[%emt 0:00:31]} Bxc4 {[%emt 0:01:02]} 37. Nxc4 {[%emt 0:00:32]} Nxc4 {[%emt 0:00:02]} 38. Rd3 {[%emt 0:00:30]} Ne5 {[%emt 0:02:14]} 39. Rd5 {[%emt 0:00:26]} Re8 {[%emt 0:00:07]} 40. Rd8 {[%emt 0:00:39]} Kf7 {[%emt 0:00:11]} 41. Rxe8 {[%emt 0:00:21]} Kxe8 {[%emt 0:00:02]} 42. Rh1 {[%emt 0:00:37]} Rg3 {[%emt 0:01:32]} 43. Rh8+ {[%emt 0:00:19]} Ke7 {[%emt 0:00:04]} 44. Rh7+ {[%emt 0:00:13]} Kd6 {[%emt 0:00:05]} 45. Rh6+ {[%emt 0:00:43]} Rg6 {[%emt 0:00:14]} 46. Rh7 {[%emt 0:00:30]} c4 {[%emt 0:00:09]} 47. Rxa7 {[%emt 0:00:32]} Kc5 {[%emt 0:01:30]} 48. Re7 {[%emt 0:00:17]} Kd4 {[%emt 0:02:25]} 49. Kc2 {[%emt 0:00:59]} Nxf3 {[%emt 0:01:14]} 50. exf3 {[%emt 0:00:11]} Rg2+ {[%emt 0:00:05]} 51. Kd1 {[%emt 0:00:28]} Kc3 {[%emt 0:00:31]} 52. Rd7 {[%emt 0:00:37]} Kb2 {[%emt 0:01:00]} 53. Rd4 {[%emt 0:00:32]} c3 {[%emt 0:00:10]} 54. Rb4+ {[%emt 0:00:31]} Kxa3 {[%emt 0:00:02]} 55. Rd4 {[%emt 0:00:34]} Kb3 {[%emt 0:00:04]} 56. Rd3 {[%emt 0:00:37]} Kb2 {[%emt 0:00:15]} 0-1

[Event "29. Klatovy A 2023"]
[Site "Klatovy"]
[Date "2023.07.02"]
[Round "2.12"]
[White "Jurek, Josef"]
[Black "Martirosyan, David"]
[Result "1-0"]
[ECO "A13"]
[WhiteElo "2251"]
[BlackElo "1908"]
[PlyCount "49"]
[EventDate "2023.07.01"]
[EventType "swiss"]
[EventRounds "9"]
[EventCountry "CZE"]
[TimeControl "120+30"]

1. c4 {[%emt 0:00:04]} e6 {[%emt 0:00:09]} 2. g3 {[%emt 0:00:13]} d5 {[%emt 0:00:09]} 3. Bg2 {[%emt 0:00:14]} dxc4 {[%emt 0:00:17]} 4. Qa4+ {[%emt 0:00:29]} Nd7 {[%emt 0:00:19]} 5. Qxc4 {[%emt 0:00:48]} a6 {[%emt 0:00:15]} 6. Qc2 {[%emt 0:01:48]} Ra7 {[%emt 0:00:37]} 7. Nf3 {[%emt 0:05:41]} c5 {[%emt 0:01:31]} 8. d3 {[%emt 0:05:13]} b5 {[%emt 0:03:04]} 9. a4 {[%emt 0:05:05]} Qb6 {[%emt 0:02:15]} 10. O-O {[%emt 0:04:48]} Bb7 {[%emt 0:01:45]} 11. Bf4 {[%emt 0:05:33]} Ra8 {[%emt 0:04:47]} 12. axb5 {[%emt 0:04:20]} axb5 {[%emt 0:00:11]} 13. Rxa8+ {[%emt 0:00:14]} Bxa8 {[%emt 0:00:05]} 14. Na3 {[%emt 0:03:33]} Ngf6 {[%emt 0:02:04]} 15. Qb3 {[%emt 0:03:34]} Bc6 {[%emt 0:12:23]} 16. Ne5 {[%emt 0:02:59]} Nxe5 {[%emt 0:00:20]} 17. Bxe5 {[%emt 0:00:43]} Nd5 {[%emt 0:01:16]} 18. Nc4 {[%emt 0:09:10]} Qd8 {[%emt 0:02:19]} 19. Ra1 {[%emt 0:11:12]} bxc4 {[%emt 0:06:39]} 20. dxc4 {[%emt 0:00:16]} Ne7 {[%emt 0:00:52]} 21. Bxc6+ {[%emt 0:01:46]} Nxc6 {[%emt 0:00:14]} 22. Qb5 {[%emt 0:12:51]} Qd7 {[%emt 0:01:21]} 23. Ra8+ {[%emt 0:01:20]} Nd8 {[%emt 0:00:17]} 24. Bc7 {[%emt 0:03:36]} Qxb5 {[%emt 0:18:57]} 25. Rxd8+ {[%emt 0:03:22]} 1-0

[Event "29. Klatovy A 2023"]
[Site "Klatovy"]
[Date "2023.07.02"]
[Round "2.13"]
[White "Kopta, Pavel"]
[Black "Novak, Vaclav2"]
[Result "1/2-1/2"]
[ECO "D36"]
[WhiteElo "2209"]
[BlackElo "1948"]
[PlyCount "99"]
[EventDate "2023.07.01"]
[EventType "swiss"]
[EventRounds "9"]
[EventCountry "CZE"]
[TimeControl "120+30"]

1. d4 {[%emt 0:00:04]} d5 {[%emt 0:00:10]} 2. c4 {[%emt 0:00:15]} e6 {[%emt 0:00:09]} 3. Nc3 {[%emt 0:00:11]} Nf6 {[%emt 0:00:12]} 4. Bg5 {[%emt 0:00:07]} Nbd7 {[%emt 0:00:29]} 5. cxd5 {[%emt 0:00:33]} exd5 {[%emt 0:00:21]} 6. e3 {[%emt 0:00:13]} Be7 {[%emt 0:00:35]} 7. Bd3 {[%emt 0:00:26]} O-O {[%emt 0:01:00]} 8. Qc2 {[%emt 0:01:05]} h6 {[%emt 0:00:42]} 9. Bh4 {[%emt 0:00:40]} c6 {[%emt 0:00:59]} 10. Nge2 {[%emt 0:01:21]} Re8 {[%emt 0:01:10]} 11. O-O {[%emt 0:05:35]} Nh5 {[%emt 0:03:17]} 12. Bxe7 {[%emt 0:03:31]} Qxe7 {[%emt 0:00:12]} 13. Rab1 {[%emt 0:00:51]} a5 {[%emt 0:04:07]} 14. Na4 {[%emt 0:09:45]} Nhf6 {[%emt 0:02:46]} 15. Rfc1 {[%emt 0:02:25]} Qd6 {[%emt 0:00:55]} 16. Ng3 {[%emt 0:02:32]} Ng4 {[%emt 0:02:54]} 17. Re1 {[%emt 0:08:42]} b5 {[%emt 0:03:01]} 18. Nc3 {[%emt 0:01:40]} Ndf6 {[%emt 0:00:45]} 19. Nf1 {[%emt 0:10:18]} h5 {[%emt 0:03:31]} 20. f3 {[%emt 0:02:11]} Nh6 {[%emt 0:00:13]} 21. Rbc1 {[%emt 0:01:38]} Bd7 {[%emt 0:00:34]} 22. Ne2 {[%emt 0:01:16]} Re7 {[%emt 0:02:59]} 23. Qc5 {[%emt 0:05:15]} Qxc5 {[%emt 0:00:46]} 24. Rxc5 {[%emt 0:00:08]} Rae8 {[%emt 0:00:56]} 25. Nc1 {[%emt 0:02:44]} g5 {[%emt 0:00:32]} 26. Nb3 {[%emt 0:02:28]} Ra8 {[%emt 0:01:18]} 27. Kf2 {[%emt 0:07:08]} g4 {[%emt 0:00:59]} 28. Re2 {[%emt 0:01:31]} Be8 {[%emt 0:00:55]} 29. Rec2 {[%emt 0:02:20]} Rb7 {[%emt 0:05:07]} 30. Nfd2 {[%emt 0:15:59]} a4 {[%emt 0:00:24]} 31. Nc1 {[%emt 0:00:40]} Kg7 {[%emt 0:00:42]} 32. b4 {[%emt 0:02:25]} Re7 {[%emt 0:02:35]} 33. a3 {[%emt 0:02:56]} Bd7 {[%emt 0:00:13]} 34. e4 {[%emt 0:00:47]} gxf3 {[%emt 0:00:47]} 35. gxf3 {[%emt 0:01:29]} Rae8 {[%emt 0:02:38]} 36. Ne2 {[%emt 0:02:36]} dxe4 {[%emt 0:00:46]} 37. Rg5+ {[%emt 0:00:31]} Kf8 {[%emt 0:01:03]} 38. Nxe4 {[%emt 0:00:46]} Nxe4+ {[%emt 0:01:03]} 39. Bxe4 {[%emt 0:00:14]} Rxe4 {[%emt 0:00:48]} 40. fxe4 {[%emt 0:01:06]} Rxe4 {[%emt 0:00:02]} 41. Kf3 {[%emt 0:05:06]} Re6 {[%emt 0:03:06]} 42. Nf4 {[%emt 0:10:20]} Rf6 {[%emt 0:00:30]} 43. Rf2 {[%emt 0:01:53]} Ng4 {[%emt 0:03:56]} 44. Rd2 {[%emt 0:02:08]} Nh6 {[%emt 0:00:33]} 45. Ke3 {[%emt 0:01:22]} Nf5+ {[%emt 0:02:06]} 46. Kd3 {[%emt 0:01:37]} Nd6 {[%emt 0:01:47]} 47. Rf2 {[%emt 0:05:31]} Bf5+ {[%emt 0:00:46]} 48. Ke2 {[%emt 0:02:59]} Bg4+ {[%emt 0:01:10]} 49. Kd3 {[%emt 0:03:30]} Bf5+ {[%emt 0:00:13]} 50. Ke2 {[%emt 0:00:04]} 1/2-1/2

[Event "29. Klatovy A 2023"]
[Site "Klatovy"]
[Date "2023.07.02"]
[Round "2.14"]
[White "Flajsman, Pavel"]
[Black "Kucera, Petr2"]
[Result "1-0"]
[ECO "A15"]
[WhiteElo "2192"]
[BlackElo "1935"]
[PlyCount "83"]
[EventDate "2023.07.01"]
[EventType "swiss"]
[EventRounds "9"]
[EventCountry "CZE"]
[TimeControl "120+30"]

1. Nf3 {[%emt 0:00:03]} Nf6 {[%emt 0:00:07]} 2. c4 {[%emt 0:00:07]} e6 {[%emt 0:00:05]} 3. g3 {[%emt 0:00:27]} b6 {[%emt 0:00:53]} 4. Bg2 {[%emt 0:00:18]} Bb7 {[%emt 0:00:02]} 5. O-O {[%emt 0:01:07]} h5 {[%emt 0:01:26]} 6. h4 {[%emt 0:32:18]} Ng4 {[%emt 0:02:09]} 7. d4 {[%emt 0:00:53]} Be7 {[%emt 0:00:58]} 8. d5 {[%emt 0:03:01]} e5 {[%emt 0:02:25]} 9. Qc2 {[%emt 0:16:14]} d6 {[%emt 0:01:42]} 10. Nc3 {[%emt 0:00:33]} Nd7 {[%emt 0:00:26]} 11. Bg5 {[%emt 0:13:23]} Ndf6 {[%emt 0:00:18]} 12. b4 {[%emt 0:15:00]} a5 {[%emt 0:01:27]} 13. a3 {[%emt 0:02:31]} Nh7 {[%emt 0:02:33]} 14. Ne4 {[%emt 0:06:40]} f5 {[%emt 0:04:00]} 15. Bxe7 {[%emt 0:00:08]} Qxe7 {[%emt 0:00:07]} 16. Neg5 {[%emt 0:08:20]} e4 {[%emt 0:01:55]} 17. Qa4+ {[%emt 0:00:05]} Kd8 {[%emt 0:03:48]} 18. Ne6+ {[%emt 0:00:19]} Kc8 {[%emt 0:00:02]} 19. Nfd4 {[%emt 0:05:03]} axb4 {[%emt 0:02:02]} 20. Qxb4 {[%emt 0:02:13]} Qf6 {[%emt 0:01:11]} 21. Nb5 {[%emt 0:04:00]} g5 {[%emt 0:08:31]} 22. Nbxc7 {[%emt 0:01:16]} gxh4 {[%emt 0:00:11]} 23. Nxa8 {[%emt 0:00:07]} Bxa8 {[%emt 0:01:14]} 24. Qxd6 {[%emt 0:01:48]} Qe5 {[%emt 0:00:49]} 25. Qxe5 {[%emt 0:02:34]} Nxe5 {[%emt 0:00:02]} 26. Rac1 {[%emt 0:01:30]} Kd7 {[%emt 0:00:19]} 27. Nd4 {[%emt 0:01:57]} Rf8 {[%emt 0:01:20]} 28. Bh3 {[%emt 0:00:39]} Kd6 {[%emt 0:00:40]} 29. c5+ {[%emt 0:07:55]} bxc5 {[%emt 0:01:36]} 30. Nxf5+ {[%emt 0:00:03]} Kxd5 {[%emt 0:01:02]} 31. Rfd1+ {[%emt 0:00:08]} Kc6 {[%emt 0:01:41]} 32. Nd4+ {[%emt 0:03:19]} Kb6 {[%emt 0:00:03]} 33. Rb1+ {[%emt 0:00:42]} Ka6 {[%emt 0:00:15]} 34. Ne6 {[%emt 0:00:26]} Rg8 {[%emt 0:02:40]} 35. Nxc5+ {[%emt 0:00:05]} Ka7 {[%emt 0:00:31]} 36. Rd6 {[%emt 0:01:06]} Bc6 {[%emt 0:03:13]} 37. Rxc6 {[%emt 0:01:30]} Nxc6 {[%emt 0:00:12]} 38. Rb7+ {[%emt 0:00:00]} Ka8 {[%emt 0:00:20]} 39. Rxh7 {[%emt 0:00:10]} hxg3 {[%emt 0:00:08]} 40. Bg2 {[%emt 0:00:49]} gxf2+ {[%emt 0:00:09]} 41. Kxf2 {[%emt 0:00:04]} e3+ {[%emt 0:01:18]} 42. Kf1 {[%emt 0:00:30]} 1-0

[Event "29. Klatovy A 2023"]
[Site "Klatovy"]
[Date "2023.07.02"]
[Round "2.15"]
[White "Roubal, Matyas"]
[Black "Kupsa, Matej 2001"]
[Result "1/2-1/2"]
[ECO "C02"]
[WhiteElo "1886"]
[BlackElo "2145"]
[PlyCount "81"]
[EventDate "2023.07.01"]
[EventType "swiss"]
[EventRounds "9"]
[EventCountry "CZE"]
[TimeControl "120+30"]

1. e4 {[%emt 0:00:01]} e6 {[%emt 0:01:07]} 2. d4 {[%emt 0:00:18]} d5 {[%emt 0:00:04]} 3. e5 {[%emt 0:00:43]} c5 {[%emt 0:00:14]} 4. c3 {[%emt 0:00:05]} Qb6 {[%emt 0:00:12]} 5. Nf3 {[%emt 0:00:15]} Nc6 {[%emt 0:00:06]} 6. Na3 {[%emt 0:00:38]} cxd4 {[%emt 0:03:01]} 7. cxd4 {[%emt 0:00:05]} Bb4+ {[%emt 0:00:24]} 8. Bd2 {[%emt 0:00:12]} Nge7 {[%emt 0:00:20]} 9. Nb5 {[%emt 0:05:00]} Bxd2+ {[%emt 0:01:44]} 10. Qxd2 {[%emt 0:00:09]} O-O {[%emt 0:00:11]} 11. Nd6 {[%emt 0:00:54]} f6 {[%emt 0:13:53]} 12. Bd3 {[%emt 0:22:38]} fxe5 {[%emt 0:10:49]} 13. Nxc8 {[%emt 0:01:12]} Raxc8 {[%emt 0:00:08]} 14. dxe5 {[%emt 0:00:08]} Qb4 {[%emt 0:10:28]} 15. Rd1 {[%emt 0:05:52]} Qg4 {[%emt 0:08:12]} 16. Qg5 {[%emt 0:07:23]} h5 {[%emt 0:24:24]} 17. O-O {[%emt 0:09:21]} Qxg5 {[%emt 0:15:42]} 18. Nxg5 {[%emt 0:00:25]} Nxe5 {[%emt 0:00:03]} 19. Nxe6 {[%emt 0:02:44]} Rf6 {[%emt 0:01:41]} 20. Nd4 {[%emt 0:00:37]} N7c6 {[%emt 0:05:54]} 21. Be2 {[%emt 0:05:03]} g6 {[%emt 0:05:52]} 22. f4 {[%emt 0:03:07]} Nc4 {[%emt 0:03:15]} 23. Nc2 {[%emt 0:05:24]} Rd8 {[%emt 0:02:09]} 24. Rxd5 {[%emt 0:09:01]} Nxb2 {[%emt 0:03:17]} 25. Rxd8+ {[%emt 0:01:13]} Nxd8 {[%emt 0:00:30]} 26. Rb1 {[%emt 0:01:39]} Na4 {[%emt 0:02:42]} 27. Rd1 {[%emt 0:01:08]} Nc6 {[%emt 0:02:03]} 28. g3 {[%emt 0:00:06]} Nb6 {[%emt 0:03:01]} 29. Ne3 {[%emt 0:01:18]} Kf7 {[%emt 0:02:13]} 30. f5 {[%emt 0:01:04]} Ne5 {[%emt 0:02:54]} 31. fxg6+ {[%emt 0:00:15]} Kxg6 {[%emt 0:00:33]} 32. Ng2 {[%emt 0:00:00]} Kh6 {[%emt 0:02:35]} 33. Nf4 {[%emt 0:00:16]} h4 {[%emt 0:01:52]} 34. Kg2 {[%emt 0:03:00]} Nbc4 {[%emt 0:01:31]} 35. Rd4 {[%emt 0:04:24]} Ne3+ {[%emt 0:00:40]} 36. Kh3 {[%emt 0:00:18]} hxg3 {[%emt 0:00:39]} 37. hxg3 {[%emt 0:00:08]} Ng6 {[%emt 0:00:33]} 38. Nxg6 {[%emt 0:00:43]} Kxg6 {[%emt 0:00:26]} 39. Rd7 {[%emt 0:00:33]} Kg5 {[%emt 0:01:25]} 40. Rg7+ {[%emt 0:01:25]} Rg6 {[%emt 0:00:11]} 41. Rxg6+ {[%emt 0:00:53]} 1/2-1/2

[Event "29. Klatovy A 2023"]
[Site "Klatovy"]
[Date "2023.07.02"]
[Round "2.16"]
[White "Mametev, Artem"]
[Black "Folk, Petr"]
[Result "1/2-1/2"]
[ECO "B33"]
[WhiteElo "1991"]
[BlackElo "2135"]
[PlyCount "136"]
[EventDate "2023.07.01"]
[EventType "swiss"]
[EventRounds "9"]
[EventCountry "CZE"]
[TimeControl "120+30"]

1. e4 {[%emt 0:00:03]} c5 {[%emt 0:00:16]} 2. Nf3 {[%emt 0:00:04]} Nc6 {[%emt 0:00:15]} 3. d4 {[%emt 0:00:07]} cxd4 {[%emt 0:00:05]} 4. Nxd4 {[%emt 0:00:03]} Nf6 {[%emt 0:00:58]} 5. Nc3 {[%emt 0:00:05]} e5 {[%emt 0:00:05]} 6. Ndb5 {[%emt 0:00:03]} d6 {[%emt 0:00:10]} 7. Bg5 {[%emt 0:00:03]} a6 {[%emt 0:00:07]} 8. Na3 {[%emt 0:00:03]} b5 {[%emt 0:00:05]} 9. Nd5 {[%emt 0:00:02]} Be7 {[%emt 0:00:11]} 10. Bxf6 {[%emt 0:00:05]} Bxf6 {[%emt 0:00:04]} 11. c4 {[%emt 0:00:03]} b4 {[%emt 0:00:37]} 12. Nc2 {[%emt 0:00:04]} a5 {[%emt 0:00:05]} 13. Qf3 {[%emt 0:00:10]} Be6 {[%emt 0:02:48]} 14. Rd1 {[%emt 0:04:53]} a4 {[%emt 0:00:54]} 15. b3 {[%emt 0:04:41]} axb3 {[%emt 0:01:42]} 16. axb3 {[%emt 0:00:02]} Ra2 {[%emt 0:24:48]} 17. Qd3 {[%emt 0:07:25]} O-O {[%emt 0:05:59]} 18. Be2 {[%emt 0:03:28]} Bg5 {[%emt 0:08:58]} 19. O-O {[%emt 0:05:31]} Qa5 {[%emt 0:12:58]} 20. Ra1 {[%emt 0:03:13]} Nd4 {[%emt 0:09:40]} 21. Ndxb4 {[%emt 0:15:50]} Nxe2+ {[%emt 0:00:25]} 22. Qxe2 {[%emt 0:00:02]} Qxb4 {[%emt 0:00:53]} 23. Rxa2 {[%emt 0:00:02]} Qxb3 {[%emt 0:00:18]} 24. Ra3 {[%emt 0:13:14]} Qxc4 {[%emt 0:08:18]} 25. Qxc4 {[%emt 0:00:09]} Bxc4 {[%emt 0:00:01]} 26. Rd1 {[%emt 0:01:08]} Rb8 {[%emt 0:01:36]} 27. Ne3 {[%emt 0:01:08]} Bxe3 {[%emt 0:01:42]} 28. Rxe3 {[%emt 0:00:08]} Kf8 {[%emt 0:02:52]} 29. h4 {[%emt 0:02:37]} Ke7 {[%emt 0:02:48]} 30. Rc3 {[%emt 0:01:00]} Rb4 {[%emt 0:01:00]} 31. Ra1 {[%emt 0:05:23]} Ke6 {[%emt 0:03:12]} 32. Ra8 {[%emt 0:01:54]} g6 {[%emt 0:02:33]} 33. h5 {[%emt 0:06:07]} gxh5 {[%emt 0:03:21]} 34. Rh8 {[%emt 0:04:11]} Be2 {[%emt 0:03:16]} 35. f3 {[%emt 0:00:24]} Kf6 {[%emt 0:00:43]} 36. Rxh7 {[%emt 0:01:15]} Kg6 {[%emt 0:00:45]} 37. Rh8 {[%emt 0:00:03]} Rd4 {[%emt 0:01:51]} 38. Rcc8 {[%emt 0:01:33]} d5 {[%emt 0:06:44]} 39. Rcg8+ {[%emt 0:00:34]} Kf6 {[%emt 0:00:11]} 40. Rh6+ {[%emt 0:00:23]} Ke7 {[%emt 0:00:14]} 41. Rxh5 {[%emt 0:00:33]} Rxe4 {[%emt 0:02:29]} 42. Rgg5 {[%emt 0:18:43]} f6 {[%emt 0:02:03]} 43. fxe4 {[%emt 0:02:32]} fxg5 {[%emt 0:00:14]} 44. Rxg5 {[%emt 0:00:14]} Kf6 {[%emt 0:01:22]} 45. Rf5+ {[%emt 0:01:16]} Ke6 {[%emt 0:00:04]} 46. Rf2 {[%emt 0:00:08]} Bg4 {[%emt 0:00:06]} 47. exd5+ {[%emt 0:00:11]} Kxd5 {[%emt 0:00:04]} 48. Rd2+ {[%emt 0:00:38]} Ke4 {[%emt 0:00:25]} 49. Kf2 {[%emt 0:00:14]} Kf4 {[%emt 0:00:24]} 50. Rd8 {[%emt 0:01:04]} Ke4 {[%emt 0:01:18]} 51. Kg3 {[%emt 0:03:34]} Be2 {[%emt 0:00:26]} 52. Kh4 {[%emt 0:00:16]} Ke3 {[%emt 0:00:30]} 53. g4 {[%emt 0:00:15]} e4 {[%emt 0:00:12]} 54. g5 {[%emt 0:00:04]} Kf2 {[%emt 0:00:19]} 55. Rf8+ {[%emt 0:02:14]} Kg2 {[%emt 0:03:50]} 56. g6 {[%emt 0:05:53]} e3 {[%emt 0:00:35]} 57. Re8 {[%emt 0:07:02]} Kf2 {[%emt 0:00:28]} 58. Rf8+ {[%emt 0:02:16]} Kg2 {[%emt 0:00:06]} 59. g7 {[%emt 0:01:56]} Bc4 {[%emt 0:00:59]} 60. Re8 {[%emt 0:00:40]} Kf2 {[%emt 0:01:26]} 61. Rf8+ {[%emt 0:01:50]} Kg2 {[%emt 0:00:38]} 62. g8=Q+ {[%emt 0:00:27]} Bxg8 {[%emt 0:00:05]} 63. Rxg8+ {[%emt 0:00:05]} Kf2 {[%emt 0:01:05]} 64. Rf8+ {[%emt 0:00:10]} Kg2 {[%emt 0:00:26]} 65. Rg8+ {[%emt 0:00:12]} Kf2 {[%emt 0:00:17]} 66. Kh3 {[%emt 0:00:11]} e2 {[%emt 0:00:28]} 67. Rg2+ {[%emt 0:00:21]} Kf1 {[%emt 0:00:36]} 68. Rxe2 {[%emt 0:00:04]} Kxe2 {[%emt 0:00:02]} 1/2-1/2

[Event "29. Klatovy A 2023"]
[Site "Klatovy"]
[Date "2023.07.02"]
[Round "2.17"]
[White "Munk, Petr"]
[Black "Kishore, Kumar Jaganathan"]
[Result "1-0"]
[ECO "B90"]
[WhiteElo "2096"]
[BlackElo "1860"]
[PlyCount "95"]
[EventDate "2023.07.01"]
[EventType "swiss"]
[EventRounds "9"]
[EventCountry "CZE"]
[TimeControl "120+30"]

1. e4 {[%emt 0:00:00]} c5 {[%emt 0:00:25]} 2. Nf3 {[%emt 0:01:41]} d6 {[%emt 0:00:11]} 3. d4 {[%emt 0:00:53]} cxd4 {[%emt 0:00:05]} 4. Nxd4 {[%emt 0:00:00]} Nf6 {[%emt 0:00:14]} 5. Nc3 {[%emt 0:00:01]} a6 {[%emt 0:00:19]} 6. Be3 {[%emt 0:01:27]} e5 {[%emt 0:00:19]} 7. Nb3 {[%emt 0:00:10]} Be6 {[%emt 0:00:17]} 8. f3 {[%emt 0:01:20]} Be7 {[%emt 0:00:27]} 9. Qd2 {[%emt 0:00:07]} O-O {[%emt 0:00:22]} 10. O-O-O {[%emt 0:01:18]} Nbd7 {[%emt 0:00:26]} 11. Nd5 {[%emt 0:05:44]} Bxd5 {[%emt 0:09:33]} 12. exd5 {[%emt 0:00:02]} a5 {[%emt 0:00:31]} 13. a4 {[%emt 0:06:48]} Qc7 {[%emt 0:06:26]} 14. g4 {[%emt 0:22:19]} Rfc8 {[%emt 0:03:40]} 15. Qf2 {[%emt 0:00:13]} Nc5 {[%emt 0:05:33]} 16. Nxc5 {[%emt 0:01:08]} dxc5 {[%emt 0:00:06]} 17. c4 {[%emt 0:03:56]} Ra6 {[%emt 0:04:33]} 18. Bd3 {[%emt 0:00:41]} Rb6 {[%emt 0:03:18]} 19. Bf5 {[%emt 0:11:04]} Re8 {[%emt 0:15:30]} 20. Qc2 {[%emt 0:06:56]} g6 {[%emt 0:06:11]} 21. Be4 {[%emt 0:00:19]} Qd7 {[%emt 0:03:05]} 22. g5 {[%emt 0:10:37]} Nxe4 {[%emt 0:19:46]} 23. fxe4 {[%emt 0:00:01]} Rb4 {[%emt 0:00:33]} 24. d6 {[%emt 0:12:01]} Qe6 {[%emt 0:04:00]} 25. Rd5 {[%emt 0:01:53]} Bxd6 {[%emt 0:00:18]} 26. Rhd1 {[%emt 0:02:19]} Be7 {[%emt 0:01:59]} 27. Bd2 {[%emt 0:01:46]} Rb6 {[%emt 0:00:48]} 28. Qc3 {[%emt 0:00:35]} Bf8 {[%emt 0:09:36]} 29. Qxa5 {[%emt 0:01:51]} Ra6 {[%emt 0:01:11]} 30. Qb5 {[%emt 0:00:11]} Rea8 {[%emt 0:01:03]} 31. a5 {[%emt 0:00:30]} b6 {[%emt 0:01:52]} 32. Bc3 {[%emt 0:00:09]} Qg4 {[%emt 0:08:20]} 33. Rxe5 {[%emt 0:06:43]} Rxa5 {[%emt 0:00:53]} 34. Qd7 {[%emt 0:00:30]} Ra1+ {[%emt 0:01:39]} 35. Kc2 {[%emt 0:00:00]} Qe2+ {[%emt 0:00:46]} 36. Rd2 {[%emt 0:00:13]} Qxc4 {[%emt 0:01:00]} 37. Re8 {[%emt 0:01:13]} b5 {[%emt 0:03:40]} 38. Qd8 {[%emt 0:06:29]} Qa4+ {[%emt 0:03:28]} 39. b3 {[%emt 0:00:02]} Ra2+ {[%emt 0:05:45]} 40. Bb2 {[%emt 0:00:23]} Rxb2+ {[%emt 0:00:27]} 41. Kxb2 {[%emt 0:00:03]} Qa1+ {[%emt 0:05:30]} 42. Kc2 {[%emt 0:00:02]} Rxd8 {[%emt 0:00:44]} 43. Rdxd8 {[%emt 0:00:02]} Qg7 {[%emt 0:00:17]} 44. e5 {[%emt 0:00:06]} h6 {[%emt 0:00:49]} 45. h4 {[%emt 0:05:52]} hxg5 {[%emt 0:02:24]} 46. hxg5 {[%emt 0:00:37]} b4 {[%emt 0:03:30]} 47. Kd3 {[%emt 0:00:17]} f5 {[%emt 0:01:26]} 48. exf6 {[%emt 0:00:16]} 1-0

[Event "29. Klatovy A 2023"]
[Site "Klatovy"]
[Date "2023.07.02"]
[Round "2.18"]
[White "Pirklova, Hana"]
[Black "Benes, Jachym"]
[Result "1-0"]
[ECO "C02"]
[WhiteElo "2085"]
[BlackElo "1806"]
[PlyCount "63"]
[EventDate "2023.07.01"]
[EventType "swiss"]
[EventRounds "9"]
[EventCountry "CZE"]
[TimeControl "120+30"]

1. e4 {[%emt 0:13:10]} e6 {[%emt 0:00:18]} 2. d4 {[%emt 0:00:10]} d5 {[%emt 0:00:05]} 3. e5 {[%emt 0:00:07]} c5 {[%emt 0:00:05]} 4. c3 {[%emt 0:00:03]} Nc6 {[%emt 0:00:04]} 5. Nf3 {[%emt 0:00:13]} Qb6 {[%emt 0:00:05]} 6. a3 {[%emt 0:00:10]} c4 {[%emt 0:01:07]} 7. Be2 {[%emt 0:01:22]} Bd7 {[%emt 0:02:12]} 8. O-O {[%emt 0:00:11]} f6 {[%emt 0:02:05]} 9. exf6 {[%emt 0:03:14]} gxf6 {[%emt 0:00:12]} 10. Nbd2 {[%emt 0:01:00]} Bd6 {[%emt 0:00:50]} 11. b3 {[%emt 0:06:13]} cxb3 {[%emt 0:00:50]} 12. Nxb3 {[%emt 0:02:40]} Nge7 {[%emt 0:00:37]} 13. c4 {[%emt 0:13:21]} dxc4 {[%emt 0:00:00]} 14. Bxc4 {[%emt 0:00:23]} O-O-O {[%emt 0:03:51]} 15. Qe2 {[%emt 0:11:25]} e5 {[%emt 0:08:49]} 16. d5 {[%emt 0:17:23]} Nd4 {[%emt 0:04:36]} 17. Nfxd4 {[%emt 0:05:13]} exd4 {[%emt 0:00:05]} 18. Bd2 {[%emt 0:05:30]} Be5 {[%emt 0:06:47]} 19. Rac1 {[%emt 0:09:22]} Kb8 {[%emt 0:01:14]} 20. Ba5 {[%emt 0:21:24]} Qd6 {[%emt 0:00:04]} 21. Bb4 {[%emt 0:00:30]} Bxh2+ {[%emt 0:00:05]} 22. Kh1 {[%emt 0:00:04]} Qf4 {[%emt 0:00:04]} 23. Qh5 {[%emt 0:00:44]} Bg4 {[%emt 0:04:28]} 24. Qxh2 {[%emt 0:02:20]} Qxh2+ {[%emt 0:00:03]} 25. Kxh2 {[%emt 0:00:04]} Nxd5 {[%emt 0:00:06]} 26. Bxd5 {[%emt 0:02:09]} Rxd5 {[%emt 0:00:04]} 27. f3 {[%emt 0:00:44]} Bd7 {[%emt 0:00:13]} 28. Nc5 {[%emt 0:07:49]} Bb5 {[%emt 0:00:08]} 29. Rfd1 {[%emt 0:02:39]} Re8 {[%emt 0:00:17]} 30. Ne4 {[%emt 0:01:40]} Re6 {[%emt 0:00:17]} 31. Rc5 {[%emt 0:03:20]} Rxc5 {[%emt 0:00:05]} 32. Nxc5 {[%emt 0:00:12]} 1-0